bitfinex/quotes_SOLUSD_20230101
["timestamp","ask_amount","ask_price","bid_price","bid_amount"]
[1672599506265,22.8168,9.999,9.9949,75.12]
[1672599506475,22.8168,9.999,9.995,40.0]
[1672599506797,75.03,10.007,9.9952,40.0]
[1672599506998,75.01,10.009,9.9953,395.52]
[1672599507209,74.31794719,10.01,9.996,110.7812]
[1672599507427,74.31794719,10.01,9.9962,40.0]
[1672599507621,74.31794719,10.01,9.9963,375.51]
[1672599507833,75.0,10.011,9.9971,40.0]
[1672599508043,74.99,10.012,9.998,157.1951]
[1672599508262,74.99,10.012,9.9982,40.0]
[1672599508263,40.0,10.011,9.9982,40.0]
[1672599508474,40.0,10.011,9.9984,40.0]
[1672599508687,40.0,10.011,9.9986,40.0]
[1672599508900,40.0,10.011,9.999,24.972]
[1672599509111,40.0,10.011,9.9992,40.0]
[1672599509428,40.0,10.011,9.9994,40.0]
[1672599509625,40.0,10.011,9.9996,40.0]
[1672599509829,40.0,10.011,9.9997,75.08]
[1672599510045,74.99,10.012,9.9997,75.08]
[1672599510366,74.99,10.012,9.9998,40.0]
[1672599510594,74.99,10.012,9.9999,75.08]
[1672599510813,74.99,10.012,10.0,40.0]
[1672599511006,74.99,10.012,10.001,75.07]
[1672599512375,40.0,10.011,10.001,75.07]
[1672599512915,22.8174,10.01,10.001,75.07]
[1672599517326,22.8174,10.01,10.002,40.0]
[1672599517538,22.8174,10.01,10.003,75.06]
[1672599518046,22.8174,10.01,10.004,40.0]
[1672599518261,22.8174,10.01,10.005,75.04]
[1672599521636,22.8174,10.01,10.003,75.06]
[1672599523090,62.8174,10.01,10.003,75.06]
[1672599523302,62.8174,10.01,10.001,75.07]
[1672599523618,23.6466,10.009,9.9994,40.0]
[1672599523831,23.6466,10.008,9.9996,40.0]
[1672599524045,23.6466,10.008,9.9998,40.0]
[1672599524239,23.6466,10.008,9.9999,75.08]
[1672599524447,23.6466,10.008,10.0,40.0]
[1672599524662,23.6466,10.008,10.001,75.07]
[1672599525499,63.6466,10.008,10.001,75.07]
[1672599525710,63.6466,10.008,9.9991,75.09]
[1672599538651,40.0,10.007,9.9991,75.09]
[1672599539078,64.8277,10.007,9.9991,75.09]
[1672599539618,64.8277,10.007,9.9981,75.09]
[1672599539810,64.8277,10.007,9.998,134.1916]
[1672599542454,64.8277,10.007,9.9981,75.09]
[1672599545479,24.8277,10.007,9.9981,75.09]
[1672599545706,24.8277,10.007,9.9991,115.09]
[1672599547075,24.8277,10.007,9.9992,40.0]
[1672599547272,24.8277,10.007,9.9993,75.09]
[1672599547810,24.8277,10.007,9.9992,40.0]
[1672599548018,24.8277,10.007,9.9994,40.0]
[1672599548240,24.8277,10.007,9.9995,75.08]
[1672599548970,24.8277,10.007,9.9991,75.09]
[1672599560536,40.0,10.006,9.9991,75.09]
[1672599567878,64.8277,10.007,9.9991,75.09]
[1672599577971,24.8277,10.007,9.9992,40.0]
[1672599578182,24.8277,10.007,9.9994,40.0]
[1672599578399,24.8277,10.007,9.9995,75.08]
[1672599578608,24.8277,10.007,9.9996,40.0]
[1672599578826,24.8277,10.007,9.9997,75.08]
[1672599579008,24.8277,10.007,9.9998,40.0]
[1672599579348,24.8277,10.007,9.9999,75.08]
[1672599579534,24.8277,10.007,9.9996,40.0]
[1672599579535,24.8277,10.007,9.9997,75.08]
[1672599579975,24.8277,10.007,9.9992,40.0]
[1672599580182,24.8277,10.007,9.9993,75.09]
[1672599580392,24.8277,10.007,9.9994,40.0]
[1672599580601,24.8277,10.007,9.9995,75.08]
[1672599581536,24.8277,10.007,9.9991,75.09]
[1672599582603,24.8277,10.007,9.9992,40.0]
[1672599582794,24.8277,10.007,9.9994,40.0]
[1672599583001,24.8277,10.007,9.9995,75.08]
[1672599583215,24.8277,10.007,9.9993,75.09]
[1672599583425,24.8277,10.007,9.9992,40.0]
[1672599583636,24.8277,10.007,9.9994,40.0]
[1672599583847,24.8277,10.007,9.9995,75.08]
[1672599585546,24.8277,10.007,9.9991,75.09]
[1672599586163,24.8277,10.007,9.9992,40.0]
[1672599586496,24.8277,10.007,9.9993,75.09]
[1672599587735,24.8277,10.007,9.9992,40.0]
[1672599587948,24.8277,10.007,9.9993,75.09]
[1672599588607,24.8277,10.007,9.9991,75.09]
[1672599589546,24.8277,10.007,9.9992,40.0]
[1672599589863,24.8277,10.007,9.9993,75.09]
[1672599590389,24.8277,10.007,9.9991,75.09]
[1672599590807,24.8277,10.007,9.9992,40.0]
[1672599591014,24.8277,10.007,9.9993,75.09]
[1672599591421,24.8277,10.007,9.9991,75.09]
[1672599592053,24.8277,10.007,9.9992,40.0]
[1672599592269,24.8277,10.007,9.9993,75.09]
[1672599594062,24.8277,10.007,9.9991,75.09]
[1672599599003,64.2562,10.008,9.9991,75.09]
[1672599601629,64.2562,10.008,9.9992,40.0]
[1672599601843,64.2562,10.008,9.9993,75.09]
[1672599602473,24.2562,10.008,9.9992,40.0]
[1672599602785,24.2562,10.008,9.9993,75.09]
[1672599603002,64.2562,10.008,9.9993,75.09]
[1672599603192,64.2562,10.008,9.9994,40.0]
[1672599603404,64.2562,10.008,9.9996,40.0]
[1672599603405,24.2562,10.008,9.9996,40.0]
[1672599603723,24.2562,10.008,9.9997,75.08]
[1672599604252,24.2562,10.008,9.9998,40.0]
[1672599604451,24.2562,10.008,10.0,40.0]
[1672599604666,24.2562,10.008,10.001,75.07]
[1672599605393,24.2562,10.008,10.002,40.0]
[1672599605598,24.2562,10.008,10.003,75.06]
[1672599606047,24.2562,10.008,10.004,40.0]
[1672599608247,40.0,10.017,10.006,40.0]
[1672599608248,74.95,10.017,10.006,40.0]
[1672599608455,74.95,10.018,10.008,40.0]
[1672599608668,74.95,10.018,10.009,24.9401]
[1672599609086,66.70167903,10.02,10.01,75.01]
[1672599609407,106.70167903,10.02,10.01,99.9501]
[1672599609810,66.70167903,10.02,10.01,219.9467]
[1672599610022,66.70167903,10.02,10.011,40.0]
[1672599610245,141.63167903,10.02,10.011,40.0]
[1672599610456,141.63167903,10.02,10.011,64.9401]
[1672599611408,199.32351575,10.02,10.011,64.9401]
[1672599611595,199.32351575,10.02,10.011,24.9401]
[1672599612347,124.39351575,10.02,10.011,64.9401]
[1672599613613,66.70167903,10.02,10.012,40.0]
[1672599613825,90.08347903,10.02,10.012,36.5]
[1672599614230,23.3818,10.02,10.013,74.98]
[1672599614441,23.3818,10.02,10.014,40.0]
[1672599616968,23.3818,10.02,10.013,74.98]
[1672599620223,23.3818,10.02,10.012,111.49]
[1672599620647,23.3818,10.02,10.012,74.99]
[1672599625901,23.3818,10.02,10.013,40.0]
[1672599626114,23.3818,10.02,10.014,74.98]
[1672599626732,23.3818,10.02,10.012,74.99]
[1672599631778,23.3818,10.02,10.013,40.0]
[1672599632295,23.3818,10.02,10.012,74.99]
[1672599633974,23.3818,10.02,10.013,40.0]
[1672599634207,23.3818,10.02,10.014,74.98]
[1672599634427,23.3818,10.02,10.015,40.0]
[1672599634643,23.3818,10.02,10.016,74.96]
[1672599635892,23.3818,10.02,10.014,74.98]
[1672599638638,23.3818,10.02,10.013,74.98]
[1672599638842,23.3818,10.02,10.012,74.99]
[1672599639573,23.3818,10.02,10.013,40.0]
[1672599639782,23.3818,10.02,10.014,74.98]
[1672599640935,23.3818,10.02,10.013,74.98]
[1672599641262,23.3818,10.02,10.012,74.99]
[1672599643359,23.3818,10.02,10.013,40.0]
[1672599643572,23.3818,10.02,10.014,74.98]
[1672599649159,23.3818,10.02,10.013,74.98]
[1672599651686,23.3818,10.02,10.014,40.0]
[1672599651996,23.3818,10.02,10.015,74.97]
[1672599654295,23.3818,10.02,10.013,74.98]
[1672599654495,23.3818,10.02,10.012,74.99]
[1672599655553,871.09312347,10.036,10.015,374.23910713]
[1672599655762,47.715,10.029,10.017,300.4]
[1672599655988,119.022,10.031,10.018,270.9089]
[1672599656197,47.715,10.03,10.019,40.0]
[1672599656408,47.715,10.03,10.02,183.1383]
[1672599656725,47.715,10.03,10.021,40.0]
[1672599656938,47.715,10.03,10.022,74.92]
[1672599657385,47.715,10.03,10.023,40.0]
[1672599657575,47.715,10.03,10.024,74.9]
[1672599657780,47.715,10.03,10.025,40.0]
[1672599658124,24.5406,10.032,10.025,40.0]
[1672599658335,193.842,10.035,10.025,40.0]
[1672599658551,240.9051,10.035,10.025,40.0]
[1672599659266,166.0851,10.035,10.025,40.0]
[1672599659567,240.9051,10.035,10.025,40.0]
[1672599659689,166.0851,10.035,10.026,74.89]
[1672599660535,121.8831,10.035,10.025,40.0]
[1672599660981,121.8831,10.035,10.024,74.9]
[1672599661582,40.0,10.034,10.024,74.9]
[1672599662014,121.8831,10.035,10.025,40.0]
[1672599662227,47.0631,10.035,10.026,74.89]
[1672599662645,47.0631,10.035,10.025,40.0]
[1672599662849,47.0631,10.035,10.024,74.9]
[1672599664855,47.0631,10.035,10.025,40.0]
[1672599665069,47.0631,10.035,10.026,74.89]
[1672599665426,47.0631,10.035,10.027,40.0]
[1672599666100,47.0631,10.035,10.026,74.89]
[1672599672104,47.0631,10.035,10.027,40.0]
[1672599673316,47.0631,10.035,10.026,74.89]
[1672599673471,47.0631,10.035,10.024,74.9]
[1672599673667,47.0631,10.035,10.021,40.0]
[1672599673668,24.5582,10.034,10.022,74.92]
[1672599673871,47.9878,10.034,10.023,40.0]
[1672599674079,47.9878,10.034,10.024,74.9]
[1672599675631,24.553,10.033,10.025,40.0]
[1672599676836,24.553,10.033,10.026,74.89]
[1672599680474,24.553,10.033,10.027,40.0]
[1672599683702,24.553,10.033,10.026,74.89]
[1672599690105,24.553,10.033,10.027,40.0]
[1672599690676,24.553,10.033,10.026,74.89]
[1672599692940,24.553,10.033,10.024,74.9]
[1672599693153,24.4377,10.032,10.024,74.9]
[1672599693348,24.4377,10.032,10.022,74.92]
[1672599693559,24.911,10.031,10.022,74.92]
[1672599694567,24.911,10.031,10.021,74.92]
[1672599694731,64.911,10.03,10.02,206.6518]
[1672599695255,24.911,10.029,10.02,206.6518]
[1672599706959,138.96253655,10.028,10.018,74.95]
[1672599707145,20.0,10.027,10.013,74.98]
[1672599707351,114.89,10.026,10.009,115.01]
[1672599707549,20.0,10.025,10.009,280.3044]
[1672599707870,40.0,10.024,10.009,280.3044]
[1672599708088,257.68335633,10.024,10.01,165.2944]
[1672599708293,257.68335633,10.024,10.011,75.0]
[1672599708509,40.0,10.022,10.011,75.0]
[1672599708713,40.0,10.022,10.011,216.6854]
[1672599709347,23.8111,10.021,10.011,216.6854]
[1672599710201,22.9945,10.02,10.011,216.6854]
[1672599712174,40.0,10.019,10.011,216.6854]
[1672599713026,64.688,10.019,10.011,216.6854]
[1672599716811,24.688,10.019,10.011,216.6854]
[1672599718711,24.688,10.019,10.012,40.0]
[1672599718923,24.688,10.019,10.013,74.98]
[1672599721856,40.0,10.025,10.014,20.0]
[1672599722196,40.0,10.025,10.016,40.0]
[1672599722363,40.0,10.025,10.017,94.95]
[1672599722580,40.0,10.026,10.017,94.95]
[1672599723435,40.0,10.026,10.017,119.1592]
[1672599724688,107.47367187,10.026,10.017,119.1592]
[1672599724899,164.8613282,10.026,10.017,119.1592]
[1672599728187,40.0,10.024,10.016,112.7554]
[1672599728561,40.0,10.022,10.012,74.99]
[1672599728782,23.8834,10.021,10.012,74.99]
[1672599729624,40.0,10.02,10.012,74.99]
[1672599730146,63.8834,10.02,10.012,74.99]
[1672599735710,63.8834,10.02,10.012,64.99]
[1672599737070,23.8834,10.02,10.013,40.0]
[1672599737467,23.8834,10.02,10.014,74.98]
[1672599738442,63.8834,10.02,10.014,74.98]
[1672599738650,63.8834,10.02,10.013,74.98]
[1672599740540,23.8834,10.02,10.013,74.98]
[1672599741993,23.8834,10.02,10.011,63.178]
[1672599741994,23.8834,10.02,10.012,74.99]
[1672599742205,63.8834,10.02,10.012,74.99]
[1672599749372,23.8834,10.02,10.012,74.99]
[1672599749578,63.8834,10.02,10.012,74.99]
[1672599755149,63.8834,10.02,10.012,69.99]
[1672599758082,63.8834,10.02,10.011,98.178]
[1672599770373,23.8834,10.02,10.011,98.178]
[1672599770589,23.8834,10.02,10.012,40.0]
[1672599770789,23.8834,10.02,10.013,74.98]
[1672599773543,23.8834,10.02,10.012,74.99]
[1672599777635,63.8834,10.02,10.012,74.99]
[1672599782469,23.8834,10.02,10.012,74.99]
[1672599783431,63.8834,10.02,10.012,74.99]
[1672599788897,23.8834,10.02,10.013,759.89374308]
[1672599789299,23.8834,10.02,10.014,40.0]
[1672599789509,23.8834,10.02,10.013,759.89374308]
[1672599792662,63.8834,10.02,10.013,759.89374308]
[1672599792995,23.8834,10.02,10.013,759.89374308]
[1672599796039,23.8834,10.02,10.014,40.0]
[1672599796992,23.8834,10.02,10.013,759.89374308]
[1672599797182,23.8834,10.02,10.014,74.98]
[1672599800252,23.8834,10.02,10.015,40.0]
[1672599801722,23.8834,10.02,10.014,74.98]
[1672599802647,23.8834,10.02,10.013,114.98]
[1672599803387,23.8834,10.02,10.013,74.98]
[1672599805503,63.8834,10.02,10.013,74.98]
[1672599805715,63.8834,10.02,10.012,1236.2033472]
[1672599806025,132.28179142,10.02,10.012,1236.2033472]
[1672599806238,92.28179142,10.02,10.012,1236.2033472]
[1672599811604,40.0,10.019,10.012,1236.2033472]
[1672599812438,132.28179142,10.02,10.012,1236.2033472]
[1672599818322,92.28179142,10.02,10.012,1236.2033472]
[1672599821050,92.28179142,10.02,10.013,40.0]
[1672599821268,92.28179142,10.02,10.014,74.98]
[1672599823565,23.8834,10.02,10.014,74.98]
[1672599828099,23.8834,10.02,10.013,74.98]
[1672599828850,23.8834,10.02,10.014,40.0]
[1672599829587,23.8834,10.02,10.013,114.98]
[1672599829782,23.8834,10.02,10.014,40.0]
[1672599830320,23.8834,10.02,10.013,114.98]
[1672599831355,23.8834,10.02,10.013,74.98]
[1672599832422,23.8834,10.02,10.014,40.0]
[1672599832621,23.8834,10.02,10.015,74.97]
[1672599832952,23.8834,10.02,10.013,114.98]
[1672599833980,23.8834,10.02,10.013,74.98]
[1672599834203,23.8834,10.02,10.013,114.98]
[1672599834738,23.8834,10.02,10.014,40.0]
[1672599835134,23.8834,10.02,10.015,74.97]
[1672599836288,23.8834,10.02,10.013,74.98]
[1672599836712,23.8834,10.02,10.012,1236.2033472]
[1672599837133,159.13132363,10.02,10.012,1236.2033472]
[1672599837343,40.0,10.019,10.012,1236.2033472]
[1672599837978,108.93775527,10.019,10.012,1236.2033472]
[1672599843471,108.93775527,10.019,10.012,1161.2133472]
[1672599851558,108.93775527,10.019,10.013,74.98]
[1672599851766,108.93775527,10.019,10.012,1236.2033472]
[1672599880689,482.53271946,10.019,10.013,908.2058407]
[1672599880894,506.55791946,10.019,10.013,908.2058407]
[1672599881303,206.15791946,10.019,10.013,908.2058407]
[1672599891723,166.15791946,10.019,10.013,908.2058407]
[1672599892042,150.3506116,10.019,10.013,908.2058407]
[1672599895303,40.0,10.018,10.013,908.2058407]
[1672599895727,80.06904219,10.017,10.013,908.2058407]
[1672599903176,80.06904219,10.017,10.014,40.0]
[1672599903393,80.06904219,10.017,10.013,908.2058407]
[1672599906540,80.06904219,10.017,10.014,74.98]
[1672599906747,80.06904219,10.017,10.013,908.2058407]
[1672599907911,147.73277008,10.019,10.013,908.2058407]
[1672599908232,227.80181227,10.019,10.013,908.2058407]
[1672599908653,227.80181227,10.019,10.014,74.98]
[1672599909809,104.09424219,10.019,10.014,40.0]
[1672599910003,104.09424219,10.019,10.015,74.97]
[1672599910210,104.09424219,10.019,10.016,40.0]
[1672599910423,80.06904219,10.019,10.016,40.0]
[1672599911179,80.06904219,10.019,10.015,74.97]
[1672599912630,80.06904219,10.019,10.014,74.98]
[1672599913064,80.06904219,10.019,10.014,114.98]
[1672599913273,80.06904219,10.019,10.015,907.6558407]
[1672599929784,80.06904219,10.019,10.016,40.0]
[1672599929993,80.06904219,10.019,10.015,907.6558407]
[1672599936088,80.06904219,10.019,10.016,40.0]
[1672599936836,80.06904219,10.019,10.015,907.6558407]
[1672599941579,47.9756,10.02,10.015,907.6558407]
[1672599941580,23.6174,10.02,10.017,40.0]
[1672599941777,23.8485,10.024,10.018,94.95]
[1672599941988,24.4965,10.029,10.018,94.95]
[1672599942207,24.929,10.027,10.018,208.8932]
[1672599942419,24.929,10.027,10.019,159.847]
[1672599942726,40.73630786,10.027,10.019,159.847]
[1672599947787,24.929,10.027,10.02,40.0]
[1672599947980,24.929,10.027,10.02,114.93]
[1672599949991,24.929,10.027,10.02,74.93]
[1672599950212,24.929,10.027,10.019,274.787]
[1672599953990,24.929,10.027,10.02,40.0]
[1672599954954,24.929,10.027,10.021,74.92]
[1672599955997,24.929,10.027,10.02,114.93]
[1672599956529,24.929,10.027,10.02,74.93]
[1672599961254,24.929,10.027,10.021,40.0]
[1672599961982,24.929,10.027,10.022,74.92]
[1672599962516,24.929,10.027,10.021,74.92]
[1672599962720,24.929,10.027,10.022,40.0]
[1672599962917,24.929,10.027,10.024,40.0]
[1672599963132,23.5154,10.028,10.025,74.89]
[1672599963343,137.6586,10.031,10.025,74.89]
[1672599963568,74.81,10.036,10.025,74.89]
[1672599963881,84.3257,10.035,10.025,74.89]
[1672599964092,40.0,10.034,10.025,74.89]
[1672599964302,80.13300786,10.034,10.025,74.89]
[1672599965044,15.80730786,10.033,10.023,74.91]
[1672599965228,40.0,10.032,10.023,74.91]
[1672599965652,55.80730786,10.032,10.023,74.91]
[1672599965862,80.76220786,10.032,10.023,74.91]
[1672599966292,80.76220786,10.032,10.021,74.92]
[1672599966506,49.5127,10.031,10.021,74.92]
[1672599966718,40.0,10.03,10.021,74.92]
[1672599967246,64.9549,10.03,10.021,74.92]
[1672599967560,80.76220786,10.03,10.021,74.92]
[1672599971568,64.9549,10.03,10.021,74.92]
[1672599972834,24.9549,10.03,10.022,40.0]
[1672599973041,24.9549,10.03,10.023,74.91]
[1672599974288,40.0,10.029,10.022,74.92]
[1672599974500,40.0,10.029,10.021,74.92]
[1672599974707,63.7573,10.029,10.021,74.92]
[1672599976109,63.7573,10.029,10.02,133.5052]
[1672599976301,154.42460786,10.029,10.02,133.5052]
[1672599976703,79.56460786,10.029,10.02,133.5052]
[1672599984703,63.7573,10.029,10.02,133.5052]
[1672599985355,63.7573,10.029,10.021,74.92]
[1672599993117,79.56460786,10.029,10.021,74.92]
[1672599995879,79.56460786,10.029,10.02,208.4352]
[1672600007970,63.7573,10.029,10.02,208.4352]
[1672600010591,138.07524719,10.029,10.02,208.4352]
[1672600015528,153.88255505,10.029,10.02,208.4352]
[1672600025849,211.22116649,10.029,10.02,208.4352]
[1672600030893,136.9032193,10.029,10.02,208.4352]
[1672600033622,200.5537254,10.029,10.02,133.5052]
[1672600034570,274.87167259,10.029,10.02,133.5052]
[1672600050676,153.88255505,10.029,10.02,133.5052]
[1672600052242,217.53306115,10.029,10.02,133.5052]
[1672600052440,274.87167259,10.029,10.02,133.5052]
[1672600055382,320.21572968,10.029,10.02,133.5052]
[1672600056013,40.0,10.027,10.02,133.5052]
[1672600056531,134.61173466,10.026,10.02,133.5052]
[1672600056750,40.0,10.025,10.02,133.5052]
[1672600056959,110.96122856,10.025,10.02,133.5052]
[1672600059085,70.96122856,10.024,10.02,133.5052]
[1672600059711,70.96122856,10.024,10.019,24.3086]
[1672600059901,40.0,10.023,10.016,74.96]
[1672600060115,89.25636272,10.023,10.011,1006.1481407]
[1672600060327,40.0,10.021,10.011,1006.1481407]
[1672600060968,24.5235,10.02,10.011,1006.1481407]
[1672600062449,24.5235,10.02,10.012,40.0]
[1672600062640,24.5235,10.02,10.013,74.98]
[1672600062853,24.5235,10.02,10.012,74.99]
[1672600063184,24.5235,10.02,10.012,114.99]
[1672600064544,95.48472856,10.02,10.012,114.99]
[1672600068443,95.48472856,10.02,10.012,74.99]
[1672600069891,95.48472856,10.02,10.013,907.6558407]
[1672600071607,40.0,10.019,10.013,907.6558407]
[1672600071914,74.99730424,10.018,10.013,907.6558407]
[1672600129212,114.99730424,10.018,10.013,907.6558407]
[1672600130479,74.99730424,10.018,10.013,907.6558407]
[1672600142232,186.94646092,10.02,10.013,907.6558407]
[1672600142461,74.99730424,10.019,10.013,907.6558407]
[1672600150661,133.76975906,10.019,10.013,907.6558407]
[1672600150979,74.99730424,10.018,10.013,907.6558407]
[1672600157578,58.77245482,10.019,10.013,907.6558407]
[1672600167162,88.1740061,10.02,10.013,907.6558407]
[1672600170834,88.1740061,10.02,10.014,40.0]
[1672600171464,88.1740061,10.02,10.013,907.6558407]
[1672600182097,103.98131396,10.02,10.013,907.6558407]
[1672600186691,103.98131396,10.02,10.014,74.98]
[1672600187955,103.98131396,10.02,10.013,907.6558407]
[1672600192803,103.98131396,10.02,10.014,74.98]
[1672600194260,103.98131396,10.02,10.013,907.6558407]
[1672600195631,40.0,10.019,10.013,907.6558407]
[1672600195837,103.98131396,10.02,10.013,907.6558407]
[1672600196907,40.0,10.019,10.013,907.6558407]
[1672600197305,79.45781396,10.018,10.013,907.6558407]
[1672600205734,58.77810927,10.017,10.013,907.6558407]
[1672600207192,122.42861537,10.017,10.013,907.6558407]
[1672600207957,138.23592323,10.017,10.013,907.6558407]
[1672600209637,122.42861537,10.017,10.013,907.6558407]
[1672600210374,58.77810927,10.017,10.013,907.6558407]
[1672600224870,40.0,10.019,10.013,907.6558407]
[1672600225192,68.76843277,10.018,10.013,907.6558407]
[1672600225395,130.62008871,10.018,10.013,907.6558407]
[1672600226756,130.62008871,10.017,10.013,907.6558407]
[1672600227392,61.85165594,10.016,10.013,907.6558407]
[1672600235714,68.76843277,10.017,10.013,907.6558407]
[1672600241485,140.3156638,10.02,10.013,907.6558407]
[1672600241808,68.76843277,10.019,10.013,907.6558407]
[1672600242847,128.75328871,10.019,10.013,907.6558407]
[1672600258943,40.0,10.018,10.013,907.6558407]
[1672600259380,168.75328871,10.018,10.013,907.6558407]
[1672600262008,75.01520107,10.017,10.013,907.6558407]
[1672600275473,128.75328871,10.018,10.013,907.6558407]
[1672600276611,128.75328871,10.018,10.014,74.98]
[1672600276823,128.75328871,10.018,10.013,907.6558407]
[1672600278304,24.5235,10.02,10.014,40.0]
[1672600278518,24.5235,10.02,10.016,40.0]
[1672600278722,24.5235,10.02,10.015,74.97]
[1672600278933,98.84144719,10.02,10.015,74.97]
[1672600281767,98.84144719,10.02,10.014,74.98]
[1672600283989,24.5235,10.02,10.014,74.98]
[1672600284198,98.84144719,10.02,10.014,74.98]
[1672600288598,24.5235,10.02,10.014,74.98]
[1672600288825,24.5235,10.02,10.016,40.0]
[1672600289023,24.5235,10.02,10.017,94.95]
[1672600289223,74.31794719,10.028,10.017,94.95]
[1672600289432,74.31794719,10.03,10.018,24.6284]
[1672600289663,105.03556087,10.029,10.019,74.94]
[1672600289877,105.03556087,10.029,10.02,64.6284]
[1672600290189,105.03556087,10.029,10.021,74.92]
[1672600290379,65.03556087,10.029,10.021,74.92]
[1672600292059,65.03556087,10.029,10.022,40.0]
[1672600292271,52.17470274,10.03,10.022,40.0]
[1672600292482,214.19350806,10.032,10.022,40.0]
[1672600292705,139.35350806,10.032,10.024,40.0]
[1672600294602,74.31794719,10.032,10.024,40.0]
[1672600294813,98.08814719,10.032,10.024,40.0]
[1672600295445,23.7702,10.032,10.024,40.0]
[1672600300163,115.94490274,10.032,10.023,74.91]
[1672600300369,23.7702,10.032,10.023,74.91]
[1672600300585,23.7702,10.032,10.024,40.0]
[1672600301220,23.7702,10.032,10.023,114.91]
[1672600301431,75.94490274,10.032,10.023,114.91]
[1672600303223,141.67379694,10.032,10.023,114.91]
[1672600305407,157.4811048,10.032,10.023,114.91]
[1672600305619,23.7702,10.032,10.024,40.0]
[1672600305834,23.7702,10.032,10.025,74.89]
[1672600308174,23.7702,10.032,10.024,74.9]
[1672600309725,23.7702,10.032,10.025,40.0]
[1672600312361,23.7702,10.032,10.024,74.9]
[1672600320355,23.7702,10.032,10.025,40.0]
[1672600321095,23.7702,10.032,10.026,74.89]
[1672600325317,23.7702,10.032,10.024,74.9]
[1672600329102,23.7702,10.032,10.025,40.0]
[1672600329318,23.7702,10.032,10.026,74.89]
[1672600331923,23.7702,10.032,10.024,74.9]
[1672600332360,23.7702,10.032,10.025,40.0]
[1672600332678,23.7702,10.032,10.026,74.89]
[1672600336659,23.7702,10.032,10.023,74.91]
[1672600337082,75.94490274,10.032,10.023,74.91]
[1672600337277,40.0,10.031,10.023,74.91]
[1672600338013,63.7929,10.031,10.023,74.91]
[1672600338655,23.7929,10.031,10.023,74.91]
[1672600341690,63.7929,10.031,10.023,74.91]
[1672600342653,40.0,10.03,10.023,74.91]
[1672600343057,163.45192811,10.03,10.023,74.91]
[1672600343271,163.45192811,10.03,10.022,98.1336]
[1672600343496,179.25923597,10.03,10.022,98.1336]
[1672600343901,202.79623597,10.03,10.022,98.1336]
[1672600345803,186.98892811,10.03,10.022,98.1336]
[1672600354819,146.98892811,10.03,10.022,98.1336]
[1672600356001,146.98892811,10.03,10.023,40.0]
[1672600357164,146.98892811,10.03,10.022,138.1336]
[1672600357581,146.98892811,10.03,10.022,98.1336]
[1672600371045,146.98892811,10.03,10.023,40.0]
[1672600372305,146.98892811,10.03,10.022,98.1336]
[1672600372509,40.0,10.029,10.022,23.2136]
[1672600373442,146.98892811,10.03,10.022,23.2136]
[1672600373657,146.98892811,10.03,10.022,63.2136]
[1672600374187,146.98892811,10.03,10.022,23.2136]
[1672600374383,146.98892811,10.03,10.022,63.2136]
[1672600374922,146.98892811,10.03,10.022,23.2136]
[1672600375119,186.98892811,10.03,10.022,23.2136]
[1672600380071,146.98892811,10.03,10.022,63.2136]